bitfinex/quotes_ETHUSD_20250406
["timestamp","ask_amount","ask_price","bid_price","bid_amount"]
[1743954171687,1.01948945,1763.9,1763.8,0.48977746]
[1743954171851,4.98795945,1763.9,1763.8,5.95477746]
[1743954172051,2.31123012,1763.9,1763.8,5.95477746]
[1743954179399,6.27970012,1763.9,1763.8,5.95477746]
[1743954180490,2.31123012,1763.9,1763.8,5.95477746]
[1743954180697,1.01948945,1763.9,1763.8,9.92347746]
[1743954180885,0.21258945,1763.9,1763.8,9.92347746]
[1743954181660,0.21258945,1763.9,1763.8,9.98017279]
[1743954182080,0.05,1763.9,1763.8,9.98017279]
[1743954182579,0.21229364,1763.9,1763.8,9.98017279]
[1743954183060,0.05,1763.9,1763.8,10.73727279]
[1743954183459,0.21229364,1763.9,1763.8,10.73727279]
[1743954183658,0.05,1763.9,1763.8,10.73727279]
[1743954183890,0.19962212,1763.9,1763.8,10.73727279]
[1743954184091,0.05,1763.9,1763.8,10.73727279]
[1743954184286,0.19962212,1763.9,1763.8,10.73727279]
[1743954184482,0.05,1763.9,1763.8,10.73727279]
[1743954184997,0.19962212,1763.9,1763.8,10.73727279]
[1743954185404,0.19962212,1763.9,1763.8,14.64164469]
[1743954185615,0.05,1763.9,1763.8,14.64164469]
[1743954195589,0.05,1763.9,1763.8,55.43464469]
[1743954210507,0.05,1763.9,1763.8,50.71247746]
[1743954211532,0.1986744,1763.9,1763.8,50.71247746]
[1743954216339,0.05,1763.9,1763.8,50.71247746]
[1743954219013,0.05,1763.9,1763.8,51.46697746]
[1743954219346,0.05,1763.9,1763.8,55.42804469]
[1743954223458,0.05,1763.9,1763.8,51.46697746]
[1743954223621,0.05,1763.9,1763.8,50.71247746]
[1743954224838,0.05,1763.9,1763.8,45.25147746]
[1743954225038,0.05,1763.9,1763.8,50.71147746]
[1743954231357,0.05,1763.9,1763.8,45.25147746]
[1743954231556,0.8797,1763.9,1763.8,50.71047746]
[1743954231855,1.00818986,1763.9,1763.8,50.71047746]
[1743954234265,0.8797,1763.9,1763.8,50.71047746]
[1743954234754,1.00798377,1763.9,1763.8,50.71047746]
[1743954236161,0.8797,1763.9,1763.8,50.71047746]
[1743954236530,1.00798377,1763.9,1763.8,50.71047746]
[1743954239762,0.17828377,1763.9,1763.8,50.71047746]
[1743954239968,0.05,1763.9,1763.8,50.71047746]
[1743954242962,0.05,1763.9,1763.8,51.48927746]
[1743954244260,0.05,1763.9,1763.8,52.03927746]
[1743954245360,0.05,1763.9,1763.8,52.63927746]
[1743954248296,0.05,1763.9,1763.8,55.63927746]
[1743954250693,0.05,1763.9,1763.8,55.08927746]
[1743954254904,0.05,1763.9,1763.8,55.63927746]
[1743954256705,0.05,1763.9,1763.8,55.92290906]
[1743954256878,0.05,1763.9,1763.8,55.63927746]
[1743954257515,0.05,1763.9,1763.8,55.08627746]
[1743954257715,0.05,1763.9,1763.8,54.48627746]
[1743954263219,0.05,1763.9,1763.8,53.70747746]
[1743954263432,0.05,1763.9,1763.8,56.07598917]
[1743954264188,0.05,1763.9,1763.8,56.62598917]
[1743954265424,0.05,1763.9,1763.8,57.22598917]
[1743954278530,0.05,1763.9,1763.8,45.85147746]
[1743954278735,0.8517,1763.9,1763.8,51.30547746]
[1743954278948,0.8517,1763.9,1763.8,50.70547746]
[1743954279139,0.97529267,1763.9,1763.8,50.70547746]
[1743954284456,0.8517,1763.9,1763.8,50.70547746]
[1743954289649,0.97493439,1763.9,1763.8,50.70547746]
[1743954289850,0.97493439,1763.9,1763.8,46.73577746]
[1743954290050,0.8517,1763.9,1763.8,46.73577746]
[1743954290451,0.97491647,1763.9,1763.8,46.73577746]
[1743954295089,0.97491647,1763.9,1763.8,41.28277746]
[1743954295271,1.46923712,1763.9,1763.8,46.73577746]
[1743954295578,5.43770712,1763.9,1763.8,46.73577746]
[1743954298585,1.46923712,1763.9,1763.8,46.73577746]
[1743954300685,9.38655933,1763.9,1763.8,46.73577746]
[1743954301388,7.80811904,1763.9,1763.8,46.73577746]
[1743954302770,7.80811904,1763.9,1763.8,41.28277746]
[1743954302970,7.80811904,1763.9,1763.8,46.73577746]
[1743954303593,7.80811904,1763.9,1763.8,46.246]
[1743954304293,3.34532839,1763.9,1763.8,46.246]
[1743954306099,3.34532839,1763.9,1763.8,46.73988971]
[1743954306899,3.34532839,1763.9,1763.8,5.453]
[1743954307573,0.97491647,1763.9,1763.8,5.453]
[1743954308868,0.97491647,1763.9,1763.8,5.94731852]
[1743954313466,1.70627731,1763.9,1763.8,5.94731852]
[1743954313671,8.67474731,1763.9,1763.8,0.49431852]
[1743954313901,8.67474731,1763.9,1763.8,5.94631852]
[1743954314405,8.67474731,1763.9,1763.8,5.452]
[1743954314605,3.97491647,1763.9,1763.8,5.452]
[1743954314790,0.17321647,1763.9,1763.8,9.4207]
[1743954316086,0.17321647,1763.9,1763.8,9.91517036]
[1743954317010,0.17321647,1763.9,1763.8,5.94647036]
[1743954317181,0.98021647,1763.9,1763.8,5.94647036]
[1743954317386,9.63156958,1763.9,1763.8,5.452]
[1743954317601,5.66309958,1763.9,1763.8,5.452]
[1743954319275,9.63156958,1763.9,1763.8,5.452]
[1743954321477,5.66309958,1763.9,1763.8,5.452]
[1743954322390,9.63156958,1763.9,1763.8,5.452]
[1743954322777,12.63156958,1763.9,1763.8,5.452]
[1743954322979,4.77588,1763.8,1763.5,40.803]
[1743954323311,0.12194655,1763.7,1763.6,5.451]
[1743954324383,4.09086655,1763.7,1763.6,5.451]
[1743954325515,4.77615,1763.6,1763.5,40.803]
[1743954325721,4.89748837,1763.6,1763.5,46.254]
[1743954326078,0.12133837,1763.6,1763.5,5.451]
[1743954326285,0.05,1763.9,1763.5,13.38974]
[1743954326490,0.05,1763.9,1763.6,3.96912]
[1743954326696,0.12202597,1763.8,1763.6,3.96912]
[1743954326985,0.12202597,1763.8,1763.5,9.42037]
[1743954328426,0.12202597,1763.8,1763.5,13.38967]
[1743954328588,0.12202597,1763.8,1763.5,9.4203]
[1743954329318,0.12202597,1763.8,1763.5,13.38953]
[1743954329618,0.12202597,1763.8,1763.6,3.96914]
[1743954330000,0.12202597,1763.8,1763.5,9.42023]
[1743954330405,8.04186324,1763.8,1763.5,5.451]
[1743954330589,8.93174956,1763.8,1763.5,5.451]
[1743954330789,12.90066956,1763.8,1763.5,5.451]
[1743954330990,3.95098727,1763.6,1763.4,40.806]
[1743954331186,0.7783,1763.7,1763.5,5.45]
[1743954331423,8.74777727,1763.9,1763.5,5.45]
[1743954331624,10.019381,1763.9,1763.5,9.41925]
[1743954332387,13.988031,1763.9,1763.5,9.41925]
[1743954332825,10.019381,1763.9,1763.5,9.41925]
[1743954334105,13.988021,1763.9,1763.5,9.41925]
[1743954335722,13.988021,1763.9,1763.5,5.45]
[1743954335723,3.96871,1763.8,1763.5,5.45]
[1743954335923,3.96896,1763.7,1763.5,5.45]
[1743954336892,0.8121,1763.6,1763.5,5.45]
[1743954337509,4.78125,1763.6,1763.4,40.806]
[1743954337820,0.8121,1763.6,1763.5,5.45]
[1743954338898,4.78125,1763.6,1763.5,5.45]
[1743954339099,6.05137273,1763.6,1763.5,5.45]
[1743954339489,2.08222273,1763.6,1763.5,5.45]
[1743954340623,0.8121,1763.6,1763.5,5.45]
[1743954341605,0.93312471,1763.6,1763.5,5.45]
[1743954341929,3.96937,1763.5,1763.4,40.806]
[1743954342114,11.04092608,1763.5,1762.7,41.92327483]
[1743954342326,3.97085,1762.9,1762.7,40.809]
[1743954342523,3.97085,1762.9,1762.8,5.45]
[1743954343541,4.78305,1762.8,1762.7,46.259]
[1743954343706,8.73403727,1762.8,1762.7,46.259]
[1743954344509,4.76308727,1762.9,1762.7,46.259]
[1743954345004,8.73394727,1762.9,1762.7,46.259]
[1743954346921,12.70489727,1762.9,1762.7,46.259]
[1743954347330,8.73394727,1762.9,1762.7,46.259]
[1743954347836,12.70484727,1762.9,1762.7,46.259]
[1743954348510,3.97095,1762.8,1762.7,46.259]
[1743954348716,3.97095,1762.8,1762.7,40.809]
[1743954348933,8.24143973,1762.8,1762.7,46.259]
[1743954350223,9.03723973,1762.8,1762.7,40.809]
[1743954352520,3.97164,1762.5,1762.1,4.79791]
[1743954352721,8.71842727,1762.5,1762.2,5.451]
[1743954353315,3.97189,1762.4,1762.2,5.451]
[1743954353520,0.11305801,1762.3,1762.2,5.451]
[1743954354650,4.74678727,1762.5,1762.2,5.451]
[1743954354848,0.11305801,1762.3,1762.2,9.42327]
[1743954355052,4.74678727,1762.5,1762.2,9.42327]
[1743954355458,0.11351453,1762.4,1762.2,9.42327]
[1743954355940,0.11351453,1762.4,1762.2,9.42321]
[1743954356256,0.11351453,1762.4,1762.3,3.97208]
[1743954358160,0.11351453,1762.4,1762.2,9.42321]
[1743954359452,0.11351453,1762.4,1762.2,13.39537]
[1743954360135,0.11351453,1762.4,1762.2,9.42316]
[1743954361080,0.11351453,1762.4,1762.3,4.85232645]
[1743954361247,0.11351453,1762.4,1762.3,4.79558]
[1743954361462,5.07868779,1762.9,1762.5,3.97147]
[1743954361665,3.29592779,1762.9,1762.7,3.97117]
[1743954361957,3.0,1762.9,1762.7,3.97117]
[1743954362361,3.0,1762.9,1762.6,10.2458]
[1743954363957,3.0,1762.9,1762.7,3.97117]
[1743954365167,3.0,1762.9,1762.6,10.2458]
[1743954365463,3.0,1762.9,1762.6,14.21708]
[1743954366466,3.0,1762.9,1762.7,3.97113]
[1743954367069,6.95098727,1762.9,1762.6,10.24578]
[1743954367258,10.92173727,1762.9,1762.6,10.24578]
[1743954368371,6.95098727,1762.9,1762.7,3.97114]
[1743954368961,3.0,1762.9,1762.7,7.94217]
[1743954369266,3.0,1762.9,1762.7,3.97103]
[1743954369466,3.0,1763.1,1762.8,3.97087]
[1743954369857,3.0,1763.1,1762.9,0.8002]
[1743954370061,3.0,1763.1,1763.0,5.45]
[1743954371149,4.74538727,1763.5,1763.2,3.97001]
[1743954371354,3.96925,1763.6,1763.2,4.77621]
[1743954371355,4.76365,1763.6,1763.2,4.77621]
[1743954371554,3.13122886,1763.5,1763.2,4.77621]
[1743954371771,3.95098727,1763.4,1763.2,4.77621]
[1743954371965,0.13050274,1763.3,1763.2,4.77621]
[1743954372145,3.0,1763.5,1763.2,4.77621]
[1743954372347,0.13104994,1763.4,1763.2,4.77621]
[1743954372756,3.9694,1763.5,1763.2,4.77621]
[1743954373076,0.1311907,1763.4,1763.2,4.77621]
[1743954373260,0.1311907,1763.4,1763.3,3.96982]
[1743954373481,0.1311907,1763.4,1763.2,4.77621]
[1743954373984,0.1311907,1763.4,1763.2,0.8063]
[1743954374852,0.1311907,1763.4,1763.2,4.77633]
[1743954376563,0.1311907,1763.4,1763.3,3.96982]
[1743954379082,6.06572947,1763.8,1763.4,3.96949]
[1743954379284,6.06572947,1763.8,1763.5,5.448]
[1743954379479,6.06572947,1763.8,1763.5,9.41736]
[1743954379685,1.29780947,1763.8,1763.6,3.96915]
[1743954379893,7.81769,1763.9,1763.6,4.56915]
[1743954380098,7.81769,1763.9,1763.6,0.6]
[1743954380299,7.81769,1763.9,1763.7,0.49576979]
[1743954381692,3.8492,1763.9,1763.8,0.49576979]
[1743954381892,3.05,1763.9,1763.8,0.49576979]
[1743954382068,4.17651453,1763.9,1763.8,0.49576979]
[1743954382400,0.05,1763.9,1763.8,0.49576979]
[1743954382770,0.05,1763.9,1763.8,5.29126979]
[1743954384087,0.05,1763.9,1763.8,1.32256979]
[1743954385401,0.05,1763.9,1763.8,5.29126979]
[1743954385791,0.05,1763.9,1763.8,4.7955]
[1743954386193,0.16284078,1763.9,1763.8,5.28983775]
[1743954387801,0.05,1763.9,1763.8,5.34652634]
[1743954388206,0.05,1763.9,1763.8,9.24084061]
[1743954390070,0.05,1763.9,1763.8,9.23990349]
[1743954391888,0.05,1763.9,1763.8,8.74648727]
[1743954392287,0.05,1763.9,1763.8,9.239659]
[1743954397323,0.05,1763.9,1763.8,49.54548727]
[1743954397888,0.05,1763.9,1763.8,50.03870152]
[1743954398523,0.05,1763.9,1763.8,46.08771425]
[1743954399087,0.05,1763.9,1763.8,51.53071425]
[1743954401721,0.05,1763.9,1763.8,45.26091425]
[1743954401921,0.8244,1763.9,1763.8,41.29221425]
[1743954402129,0.8244,1763.9,1763.8,46.73421425]
[1743954403094,0.8244,1763.9,1763.8,50.70291425]
[1743954403427,0.8244,1763.9,1763.8,50.2097]
[1743954403626,0.8244,1763.9,1763.8,46.241]
[1743954403922,0.8244,1763.9,1763.8,46.73461781]
[1743954404526,0.8244,1763.9,1763.8,50.70331781]
[1743954405320,0.8244,1763.9,1763.8,46.73461781]
[1743954407322,0.8244,1763.9,1763.8,41.29261781]
[1743954407537,0.8244,1763.9,1763.8,46.73461781]
[1743954408595,0.8244,1763.9,1763.8,41.29261781]
[1743954408924,5.272142,1763.9,1763.8,40.799]
[1743954409227,8.272142,1763.9,1763.8,40.799]
[1743954409400,7.7431,1763.8,1763.7,5.442]
[1743954409599,12.24408727,1763.8,1763.7,5.442]
[1743954409803,8.29332,1763.7,1763.6,0.6]
[1743954410006,4.76266,1763.4,1763.3,5.442]
[1743954413331,0.793,1763.4,1763.3,5.442]
[1743954413531,0.793,1763.6,1763.3,5.442]
[1743954414122,0.793,1763.6,1763.3,9.41169]
[1743954414327,0.793,1763.6,1763.3,13.38136]
[1743954414632,0.793,1763.6,1763.3,9.41167]
[1743954415235,0.793,1763.6,1763.4,0.6]
[1743954416532,3.7933,1763.8,1763.4,4.56948]
[1743954416735,8.98621893,1763.8,1763.4,4.56948]
[1743954418745,9.2820033,1763.8,1763.4,4.56948]
[1743954419618,7.91992727,1763.7,1763.4,0.6]
[1743954419837,3.9693,1763.6,1763.4,0.6]
[1743954420033,11.71365727,1763.5,1763.4,0.6]
[1743954420233,13.281953,1763.5,1763.4,6.042]
[1743954426681,3.7933,1763.5,1763.4,6.042]
[1743954426842,4.76223,1763.7,1763.4,6.042]
[1743954427158,3.96937,1763.5,1763.4,6.042]
[1743954428555,10.92029727,1763.6,1763.4,6.042]
[1743954429634,14.88962727,1763.6,1763.4,6.042]
[1743954430031,10.92029727,1763.6,1763.4,6.042]
[1743954430574,6.95098727,1763.6,1763.4,6.042]
[1743954430947,10.92021727,1763.6,1763.4,6.042]
[1743954431147,3.96937,1763.5,1763.4,6.042]
[1743954433867,12.091569,1763.6,1763.4,6.042]
[1743954434174,12.38737348,1763.6,1763.4,6.042]
[1743954435040,7.79697,1763.5,1763.4,6.042]
[1743954435240,7.79697,1763.5,1763.4,0.6]
[1743954435578,9.51540435,1763.5,1763.4,0.6]
[1743954435869,10.06540435,1763.5,1763.4,0.6]
[1743954436069,3.97005,1763.2,1763.1,5.442]
[1743954436234,8.69663727,1763.2,1763.1,5.442]
[1743954440658,3.9705,1763.0,1762.9,40.814]
[1743954440867,12.79117327,1763.0,1762.9,40.814]
[1743954441076,3.97133,1762.7,1762.4,0.7608]
[1743954441370,3.97152,1762.6,1762.5,5.442]
[1743954441547,3.9723,1762.2,1761.6,0.7608]
[1743954441897,3.97248,1762.2,1761.7,5.442]
[1743954442099,3.0,1762.1,1761.9,0.7608]
[1743954444192,3.0,1762.1,1761.9,4.73372]
[1743954444671,3.97186,1762.4,1762.0,3.97265]
[1743954444871,8.69809727,1762.6,1762.2,0.7608]
[1743954445082,3.97123,1762.7,1762.3,3.97202]
[1743954445281,3.0,1762.6,1762.3,3.97202]
[1743954445495,7.92215727,1762.8,1762.3,3.97194]
[1743954445704,3.0,1762.7,1762.4,5.443]
[1743954445878,3.97117,1762.8,1762.4,3.97173]
[1743954446197,3.97117,1762.8,1762.5,5.443]
[1743954446764,3.0,1762.8,1762.6,0.7608]
[1743954446986,6.97101,1762.8,1762.6,0.7608]
[1743954448012,3.0,1762.8,1762.6,0.7608]
[1743954448719,8.69714727,1763.0,1762.6,4.73219]
[1743954449014,3.97084,1762.9,1762.6,0.7608]
[1743954449182,6.97084,1762.9,1762.6,0.7608]
[1743954449595,3.971,1762.8,1762.5,5.443]
[1743954449792,7.92248727,1762.6,1762.4,0.7608]
[1743954449985,7.92248727,1762.6,1762.5,5.443]
[1743954450502,7.35778627,1762.6,1762.5,5.443]
[1743954450709,7.92218727,1762.7,1762.5,5.443]
[1743954451322,3.97095,1762.8,1762.5,5.443]
[1743954452514,3.97121,1762.7,1762.5,5.443]
[1743954457220,5.53340327,1762.7,1762.3,0.8035]
[1743954457422,3.97154,1762.6,1762.4,5.443]
[1743954457624,3.97186,1762.4,1762.2,40.828]
[1743954457824,3.97186,1762.4,1762.3,5.443]
[1743954458024,3.97208,1762.3,1762.2,40.828]
[1743954458224,9.09628127,1762.3,1762.2,46.271]
[1743954458525,9.09628127,1762.3,1761.7,4.74393]
[1743954458526,3.97275,1762.0,1761.7,0.7706]
[1743954458744,3.97275,1762.0,1761.8,5.443]
[1743954459096,8.71172727,1762.1,1761.8,5.443]
[1743954459315,3.95098727,1762.1,1761.8,9.41612]
[1743954459524,3.0,1762.1,1761.8,9.41612]
[1743954460220,6.97256,1762.1,1761.7,4.74394]
[1743954460439,10.94526,1762.1,1761.8,5.443]
[1743954460595,6.97256,1762.1,1761.8,5.443]
[1743954460799,10.94526,1762.1,1761.8,5.443]
[1743954461017,3.97276,1762.0,1761.8,5.443]
[1743954461531,12.01804327,1762.1,1761.8,5.443]
[1743954461702,1.961414,1762.3,1761.9,3.97283]
[1743954461703,4.76029,1762.3,1761.9,3.97283]
[1743954461902,3.97209,1762.3,1761.9,3.97283]
[1743954462114,3.97209,1762.3,1762.0,0.7706]
[1743954462769,7.94433,1762.3,1762.0,0.7706]
[1743954462950,9.038763,1762.3,1762.0,0.7706]
[1743954463527,3.97231,1762.2,1762.0,0.7706]
[1743954464468,3.97231,1762.2,1761.8,10.1868]
[1743954466067,3.97231,1762.2,1761.8,14.15974]
[1743954466364,3.97231,1762.2,1761.8,14.15979]
[1743954467227,7.94478,1762.2,1761.8,10.18667]
[1743954467427,3.97278,1762.0,1761.8,5.443]
[1743954467861,3.97278,1762.0,1761.7,3.97343]
[1743954468026,3.97258,1762.1,1761.8,5.443]
[1743954468427,4.76061,1762.2,1761.8,13.38927]
[1743954469445,7.26790046,1762.4,1762.0,3.97275]
[1743954469829,7.94441,1762.3,1761.9,5.23701207]
[1743954470255,7.94441,1762.3,1762.0,0.49357207]
[1743954470464,3.97231,1762.2,1762.0,0.49357207]
[1743954471327,3.97275,1762.0,1761.9,0.49357207]
[1743954471761,4.72395,1762.0,1761.9,5.93657207]
[1743954472558,3.97275,1762.0,1761.9,5.443]
[1743954473061,3.97253,1762.1,1761.9,5.443]
[1743954475142,3.0,1762.1,1761.9,5.443]
[1743954475540,8.23992046,1762.4,1762.0,4.78716]
[1743954475862,7.92315727,1762.3,1762.0,0.8145]
[1743954476063,7.92315727,1762.3,1762.0,1.30825147]
[1743954476558,7.92315727,1762.3,1762.0,0.49375147]
[1743954476765,7.92351727,1762.1,1762.0,0.49375147]
[1743954477333,3.95098727,1762.1,1762.0,0.49375147]
[1743954477739,3.95098727,1762.1,1761.9,5.443]
[1743954478439,6.97234,1762.2,1761.9,5.443]
[1743954478639,10.94483,1762.2,1761.9,5.443]
[1743954478839,6.97234,1762.2,1761.9,5.443]
[1743954479652,6.97234,1762.2,1762.0,5.443]
[1743954480392,3.0,1762.2,1762.0,5.443]
[1743954480563,3.95098727,1762.3,1762.0,9.41573]
[1743954480962,7.92306727,1762.3,1762.0,5.443]
[1743954481161,3.95098727,1762.3,1762.0,5.443]
[1743954481367,7.26793046,1762.4,1762.0,13.38827]
[1743954481548,7.26793046,1762.4,1762.1,3.97251]
[1743954481757,11.23999046,1762.4,1762.0,9.41563]
[1743954482567,11.23999046,1762.4,1762.1,0.49428828]
[1743954483101,7.26793046,1762.4,1762.1,0.49428828]
[1743954483263,7.26793046,1762.4,1762.0,9.41563]
[1743954483465,7.26793046,1762.4,1762.0,13.3883]
[1743954483781,7.26793046,1762.4,1762.0,9.41563]
[1743954484288,7.92314727,1762.3,1762.0,5.443]
[1743954484658,7.92314727,1762.3,1761.8,3.97319]
[1743954484659,3.97237,1762.2,1761.8,3.97319]
[1743954484859,3.97237,1762.2,1761.9,5.443]
[1743954485152,3.97237,1762.2,1762.0,0.49468805]
[1743954485356,3.95098727,1762.3,1762.0,1.30858805]
[1743954485603,7.26791046,1762.4,1762.0,5.28118805]
[1743954486169,7.26791046,1762.4,1762.1,0.49468805]
[1743954486971,7.26791046,1762.4,1762.1,4.46716805]
[1743954487167,7.26791046,1762.4,1762.2,0.49468805]
[1743954487368,7.26791046,1762.4,1762.3,5.443]
[1743954487592,8.33500885,1762.4,1762.3,5.443]
[1743954488766,0.7728,1762.3,1761.8,0.8139]
[1743954489091,7.92352727,1762.1,1761.9,5.443]
[1743954489472,3.95098727,1762.1,1762.0,0.49554178]
[1743954489671,8.69607727,1762.3,1762.0,0.49554178]
[1743954490074,3.95098727,1762.3,1762.0,0.49554178]
[1743954490261,3.29604046,1762.4,1762.1,5.23337178]
[1743954490662,7.26790046,1762.4,1762.1,1.26094178]
[1743954491173,11.21888773,1762.4,1762.1,1.26094178]
[1743954491572,11.21888773,1762.4,1762.2,0.49554178]
[1743954491774,11.21888773,1762.4,1762.3,5.442]
[1743954492080,12.7379395,1762.4,1762.3,5.442]
[1743954492286,4.77198,1762.1,1761.7,45.58181]
[1743954492477,8.72296727,1762.1,1761.8,5.442]
[1743954492688,8.72250727,1762.3,1761.9,3.9729]
[1743954492890,7.92310727,1762.3,1761.9,4.7383]
[1743954493089,7.26802046,1762.4,1761.9,4.73823]
[1743954493286,7.26802046,1762.4,1762.0,3.97266]
[1743954493503,7.26802046,1762.4,1762.0,4.46815762]
[1743954493697,7.26802046,1762.4,1762.0,8.44079762]
[1743954493897,7.26802046,1762.4,1762.1,0.7654]
[1743954494110,7.26802046,1762.4,1762.2,5.442]
[1743954494682,7.26802046,1762.4,1762.3,0.49549762]
[1743954495903,0.29604046,1762.4,1762.3,1.30889762]
[1743954496106,7.92217727,1762.7,1762.3,5.28097762]
[1743954497107,3.97147,1762.6,1762.3,1.30889762]
[1743954497477,3.97147,1762.6,1762.4,0.49549762]
[1743954498387,7.92217727,1762.7,1762.3,8.75745]
[1743954498705,7.92217727,1762.7,1762.3,4.78538]
[1743954499425,7.92217727,1762.7,1762.4,0.49500723]
[1743954499584,8.07763735,1762.8,1762.4,8.43847723]
[1743954499793,8.07763735,1762.8,1762.4,4.46672723]
[1743954500318,8.07763735,1762.8,1762.5,0.49500723]
[1743954500506,8.07763735,1762.8,1762.6,5.442]
[1743954501206,0.29598735,1762.8,1762.7,4.77798]
[1743954501402,3.97028,1763.1,1762.7,4.77798]
[1743954501788,3.97028,1763.1,1762.7,4.83470492]
[1743954502034,3.97028,1763.1,1762.7,4.77798]
[1743954502793,7.94073,1763.1,1762.7,4.77798]
[1743954503226,3.97028,1763.1,1762.7,4.77798]
[1743954503395,3.97028,1763.1,1762.7,0.8068]
[1743954503607,3.97055,1763.0,1762.7,0.8068]
[1743954505903,3.95098727,1762.8,1762.5,0.8068]
[1743954506103,3.97118,1762.7,1762.6,5.441]
[1743954508597,3.97175,1762.5,1762.1,4.77931]
[1743954508801,7.92273727,1762.5,1762.2,5.44]
[1743954509013,3.97175,1762.5,1762.2,5.44]
[1743954511703,7.94355,1762.5,1762.2,5.44]
[1743954512142,7.94355,1762.5,1762.3,0.7618]
[1743954512346,3.97175,1762.5,1762.3,0.7618]
[1743954512948,7.94358,1762.5,1762.3,0.7618]
[1743954513154,7.94358,1762.5,1762.2,5.44]
[1743954515033,3.97197,1762.4,1762.2,5.44]
[1743954515254,4.79797,1762.4,1762.2,5.44]
[1743954516357,4.79797,1762.4,1761.9,4.8023]
[1743954516358,5.65395927,1762.4,1761.9,4.8023]
[1743954516545,3.97229,1762.3,1761.9,4.8023]
[1743954516745,3.97231,1762.2,1762.0,5.44]
[1743954517552,3.97229,1762.3,1762.0,5.44]
[1743954518668,7.94453,1762.3,1762.0,5.44]
[1743954518877,3.97224,1762.3,1762.0,9.41275]
[1743954519454,3.0,1762.3,1762.0,9.41275]
[1743954520242,6.97212,1762.3,1762.0,5.44]
[1743954521772,3.0,1762.3,1762.0,9.41274]
[1743954522274,3.0,1762.3,1762.0,13.3854]
[1743954522440,3.0,1762.3,1762.0,9.41266]
[1743954522643,0.2960093,1762.4,1762.1,4.80179]
[1743954522842,0.2960093,1762.4,1762.2,3.97222]
[1743954527051,0.2960093,1762.4,1762.1,4.80191]
[1743954528485,0.2960093,1762.4,1762.1,8.77431]
[1743954528655,0.2960093,1762.4,1762.1,4.8018]
[1743954530001,4.2678793,1762.4,1762.1,0.8294]
[1743954530226,3.9722,1762.3,1762.0,41.649]
[1743954530520,3.0,1762.3,1762.1,5.44]
[1743954535589,3.0,1762.3,1762.1,9.41237]
[1743954535795,3.0,1762.3,1762.1,13.38476]
[1743954536103,3.0,1762.3,1762.1,9.41237]
[1743954536505,3.0,1762.3,1762.1,13.38478]
[1743954537204,3.0,1762.3,1762.1,9.41237]
[1743954540309,3.0,1762.3,1762.1,13.38481]
[1743954540475,3.2960093,1762.4,1762.1,13.38481]
[1743954540675,3.2960093,1762.4,1762.1,9.41237]
[1743954541347,3.2960093,1762.4,1762.2,3.97228]
[1743954541516,3.2960093,1762.4,1762.2,3.97219]
[1743954542435,3.2960093,1762.4,1762.1,9.41252]
[1743954543423,4.2679793,1762.4,1762.1,5.44]
[1743954543781,8.2400293,1762.4,1762.1,5.44]
[1743954544205,8.2400293,1762.4,1762.0,45.62175]
[1743954544389,3.97217,1762.3,1762.1,5.439]
[1743954547315,7.9444,1762.3,1762.1,5.439]
[1743954548018,7.9444,1762.3,1762.0,40.841]
[1743954548019,4.7604,1762.2,1762.0,40.841]
[1743954548179,4.7604,1762.2,1762.1,5.439]
[1743954549393,0.7881,1762.2,1762.1,5.439]
[1743954549593,4.7604,1762.2,1762.1,5.439]
[1743954550587,4.7604,1762.2,1762.0,40.841]
[1743954550793,8.7329,1762.2,1762.1,5.439]
[1743954550994,3.97253,1762.1,1762.0,40.841]
[1743954551193,8.72221727,1762.1,1762.0,46.28]
[1743954551828,11.72221727,1762.1,1762.0,46.28]
[1743954552799,11.72221727,1762.1,1762.0,40.841]
[1743954552999,11.72221727,1762.1,1762.0,46.28]
[1743954553195,13.49071389,1762.1,1762.0,5.439]
[1743954554130,5.56719662,1762.1,1762.0,5.439]
[1743954554334,8.06704421,1762.2,1762.0,5.439]
[1743954554806,3.97253,1762.1,1762.0,5.439]
[1743954555330,7.92351727,1762.1,1762.0,5.439]
[1743954555539,3.97296,1762.0,1761.9,5.439]
[1743954555696,7.94592,1762.0,1761.9,5.439]
[1743954555897,3.97329,1761.8,1761.5,0.7597]
[1743954556122,3.97329,1761.8,1761.6,5.439]
[1743954556328,7.94665,1761.8,1761.6,5.439]
[1743954557639,3.97329,1761.8,1761.6,5.439]
[1743954560138,3.97329,1761.8,1761.5,0.7597]
[1743954560139,7.94669,1761.8,1761.5,0.7597]
[1743954560430,7.94669,1761.8,1761.4,40.844]
[1743954560431,7.94713,1761.7,1761.4,40.844]
[1743954560635,8.73581727,1761.7,1761.6,5.439]
[1743954560835,3.97378,1761.6,1761.4,40.844]
[1743954561136,7.92486727,1761.5,1761.4,40.844]
[1743954561338,7.92486727,1761.5,1761.4,46.283]
[1743954561701,10.92486727,1761.5,1761.4,46.283]
[1743954561901,12.926132,1761.5,1761.4,46.283]
[1743954562123,12.926132,1761.5,1761.4,40.844]
[1743954562351,4.78596,1761.2,1761.1,0.05]
[1743954562547,3.0,1761.5,1761.2,0.7597]
[1743954562757,3.0,1761.5,1761.3,3.9743]
[1743954563215,0.8114,1761.7,1761.2,0.7597]
[1743954563535,6.97321,1761.8,1761.5,0.7597]
[1743954563860,8.148988,1761.8,1761.6,5.439]
[1743954564076,9.113448,1762.0,1761.6,9.41256]
[1743954564276,3.97277,1762.0,1761.6,13.38606]
[1743954564659,3.97277,1762.0,1761.7,3.97343]
[1743954564859,7.78399,1762.1,1761.7,3.97343]